bitfinex/quotes_BTCUSD_20240729
["timestamp","ask_amount","ask_price","bid_price","bid_amount"]
[1722213766314,1.00021115,69008.0,69007.0,0.82961749]
[1722213766480,0.89284815,69008.0,69007.0,0.82961749]
[1722213766686,1.00621115,69008.0,69007.0,0.82961749]
[1722213767741,0.9825658,69008.0,69007.0,0.82961749]
[1722213767947,1.15372539,69008.0,69007.0,0.82961749]
[1722213768278,1.15372539,69008.0,69007.0,0.8193]
[1722213768279,1.33558239,69008.0,69007.0,0.8193]
[1722213768663,1.33558239,69008.0,69007.0,0.82961586]
[1722213769061,1.10372539,69008.0,69007.0,0.82961586]
[1722213769613,1.32058239,69008.0,69007.0,0.82761586]
[1722213769766,1.32958239,69008.0,69007.0,0.82861586]
[1722213770091,1.09772539,69008.0,69007.0,0.82861586]
[1722213770507,0.90186239,69008.0,69007.0,0.82861586]
[1722213770707,0.90186239,69008.0,69007.0,0.90116159]
[1722213770708,0.80684881,69008.0,69007.0,0.90116159]
[1722213770911,0.80326239,69008.0,69007.0,0.8183]
[1722213771083,0.80326239,69008.0,69007.0,0.82861943]
[1722213771084,1.03778735,69008.0,69007.0,0.82861943]
[1722213771289,0.57048693,69008.0,69007.0,0.82861943]
[1722213771467,0.58448693,69008.0,69007.0,0.82861943]
[1722213771653,0.75913035,69008.0,69007.0,0.82861943]
[1722213771871,0.75554393,69008.0,69007.0,0.82861943]
[1722213773104,0.81714393,69008.0,69007.0,0.82861943]
[1722213773507,1.21430093,69008.0,69007.0,0.82861943]
[1722213773708,1.91246093,69008.0,69007.0,0.82861943]
[1722213773935,1.91246093,69008.0,69007.0,0.8183]
[1722213774136,1.8747198,69008.0,69007.0,1.3183]
[1722213774334,1.91289855,69008.0,69007.0,1.32860869]
[1722213774691,1.89295067,69008.0,69007.0,1.32860869]
[1722213775675,1.89295067,69008.0,69007.0,1.3183]
[1722213776000,1.89295067,69008.0,69007.0,1.32860869]
[1722213776627,1.74229067,69008.0,69007.0,1.32860869]
[1722213777358,1.7039618,69008.0,69007.0,1.32860869]
[1722213777520,1.74220222,69008.0,69007.0,1.32860869]
[1722213778930,1.79220222,69008.0,69007.0,1.32860869]
[1722213779135,1.89220222,69008.0,69007.0,1.32860869]
[1722213780710,1.8539618,69008.0,69007.0,1.32860869]
[1722213780910,1.89223677,69008.0,69007.0,1.32860869]
[1722213781445,1.74770377,69008.0,69007.0,1.32860869]
[1722213782919,1.74762776,69008.0,69007.0,1.32860869]
[1722213783396,1.74762627,69008.0,69007.0,1.32860869]
[1722213783622,1.74762627,69008.0,69007.0,1.32953269]
[1722213783754,1.74846627,69008.0,69007.0,1.32953269]
[1722213784350,1.98032327,69008.0,69007.0,1.32953269]
[1722213784566,1.98032327,69008.0,69007.0,1.27929897]
[1722213785543,1.9712818,69008.0,69007.0,1.27929897]
[1722213785841,2.2031388,69008.0,69007.0,1.26899028]
[1722213786042,2.18851423,69008.0,69007.0,1.27829897]
[1722213786180,2.17451423,69008.0,69007.0,1.27829897]
[1722213786382,1.87415723,69008.0,69007.0,1.27929897]
[1722213786644,2.1235308,69008.0,69007.0,1.28029897]
[1722213786815,2.1235308,69008.0,69007.0,1.27929897]
[1722213786816,1.95665723,69008.0,69007.0,1.27929897]
[1722213787173,1.97065723,69008.0,69007.0,1.28029897]
[1722213787703,1.95665723,69008.0,69007.0,1.27929897]
[1722213787925,1.94265723,69008.0,69007.0,1.27829897]
[1722213788328,1.95665723,69008.0,69007.0,1.27829897]
[1722213788544,1.94265723,69008.0,69007.0,1.27829897]
[1722213788962,1.8646258,69008.0,69007.0,1.27829897]
[1722213789138,1.88852134,69008.0,69007.0,1.27829897]
[1722213789336,1.95702134,69008.0,69007.0,1.27829897]
[1722213789655,1.97102134,69008.0,69007.0,1.27829897]
[1722213791887,1.95702134,69008.0,69007.0,1.27829897]
[1722213792241,1.95743606,69008.0,69007.0,1.27829897]
[1722213792654,3.1924168,69008.0,69007.0,1.27829897]
[1722213792886,3.21662984,69008.0,69007.0,1.26799028]
[1722213793328,3.2191529,69008.0,69007.0,1.27679245]
[1722213793590,3.2331529,69008.0,69007.0,1.27679245]
[1722213794025,3.2191529,69008.0,69007.0,1.27679245]
[1722213794289,3.2331529,69008.0,69007.0,1.27679245]
[1722213794483,3.2224559,69008.0,69007.0,1.27679245]
[1722213794598,3.33392358,69008.0,69007.0,1.27679245]
[1722213794809,3.33392358,69008.0,69007.0,1.24522805]
[1722213795030,3.2222755,69008.0,69007.0,1.24522805]
[1722213796351,3.4541325,69008.0,69007.0,1.24522805]
[1722213796980,3.56565861,69008.0,69007.0,1.24522805]
[1722213797121,3.55165861,69008.0,69007.0,1.24522805]
[1722213797554,3.53765861,69008.0,69007.0,1.24522805]
[1722213797751,3.55165861,69008.0,69007.0,1.24522805]
[1722213797956,3.56565861,69008.0,69007.0,1.24522805]
[1722213798159,4.79065861,69008.0,69007.0,1.06226405]
[1722213798385,4.79065861,69008.0,68989.0,0.4758]
[1722213798386,1.425543,68990.0,68989.0,0.4758]
[1722213798592,0.497886,68988.0,68987.0,0.45077872]
[1722213798793,0.497886,68988.0,68985.0,0.000924]
[1722213798794,0.729827,68986.0,68985.0,0.000924]
[1722213799013,3.30933923,68986.0,68985.0,0.290844]
[1722213799246,3.28233923,68986.0,68985.0,0.290844]
[1722213799468,3.33233923,68986.0,68985.0,0.290844]
[1722213799871,3.04055823,68986.0,68985.0,0.290844]
[1722213800531,3.05455823,68986.0,68985.0,0.290844]
[1722213801706,3.06855823,68986.0,68985.0,0.580764]
[1722213802199,3.035265,68986.0,68985.0,0.580764]
[1722213802366,3.07745693,68986.0,68985.0,0.580764]
[1722213802569,2.99495693,68986.0,68985.0,0.580764]
[1722213802707,2.83061493,68986.0,68985.0,0.580764]
[1722213803408,2.81661493,68986.0,68985.0,0.580764]
[1722213804059,2.83061493,68986.0,68985.0,0.580764]
[1722213804267,3.20814593,68986.0,68985.0,0.580764]
[1722213805510,2.79049593,68986.0,68985.0,0.580764]
[1722213805714,2.81307691,68986.0,68985.0,0.580764]
[1722213806583,2.66664193,68986.0,68985.0,0.580764]
[1722213806960,2.81307691,68986.0,68985.0,0.580764]
[1722213807159,2.66664193,68986.0,68985.0,0.580764]
[1722213808085,2.66671897,68986.0,68985.0,0.580764]
[1722213810645,2.89864997,68986.0,68985.0,0.580764]
[1722213811202,2.89880717,68986.0,68985.0,0.580764]
[1722213811604,7.59169217,68986.0,68985.0,0.580764]
[1722213811795,7.06216317,68986.0,68985.0,0.435804]
[1722213811936,7.10315618,68986.0,68985.0,0.37436976]
[1722213812123,7.06216317,68986.0,68985.0,0.28739376]
[1722213812321,7.06216317,68986.0,68985.0,0.22940976]
[1722213812535,7.27553789,68986.0,68985.0,0.51932976]
[1722213812739,7.27553322,68986.0,68985.0,0.51932976]
[1722213813146,7.46803322,68986.0,68985.0,0.46134576]
[1722213813459,7.24318864,68986.0,68985.0,0.35159704]
[1722213813867,7.25718864,68986.0,68985.0,0.35159704]
[1722213814053,7.25718864,68986.0,68985.0,0.32260504]
[1722213814257,8.62670665,68986.0,68985.0,0.15702822]
[1722213814574,7.25720665,68986.0,68985.0,0.15702822]
[1722213814955,6.74596965,68986.0,68985.0,0.15702822]
[1722213815128,6.40524865,68986.0,68985.0,0.15702822]
[1722213815327,6.40524865,68986.0,68985.0,0.12803622]
[1722213815328,6.36858765,68986.0,68985.0,0.12803622]
[1722213815484,6.36858765,68986.0,68985.0,0.04106022]
[1722213815689,6.36858765,68986.0,68985.0,0.01299222]
[1722213816086,6.51521965,68986.0,68985.0,0.01299222]
[1722213816333,6.00738147,68986.0,68985.0,0.01299222]
[1722213816535,6.04925078,68986.0,68985.0,0.01299222]
[1722213817648,6.03996182,68986.0,68985.0,0.01299222]
[1722213817852,6.04900883,68986.0,68985.0,2.2e-07]
[1722213818022,2.70480383,68986.0,68985.0,2.2e-07]
[1722213819447,5.14380383,68986.0,68985.0,2.2e-07]
[1722213819873,4.78680383,68986.0,68985.0,2.2e-07]
[1722213820359,4.06330383,68986.0,68985.0,0.17395222]
[1722213820581,3.65967647,68986.0,68985.0,0.14496022]
[1722213820788,3.70096985,68986.0,68985.0,0.14496022]
[1722213821228,3.70096985,68986.0,68985.0,0.05798422]
[1722213821432,3.70096985,68986.0,68985.0,2.2e-07]
[1722213821780,3.70096985,68986.0,68961.0,0.03985121]
[1722213821781,0.812038,68962.0,68961.0,0.03985121]
[1722213822021,1.19653138,68962.0,68961.0,0.04903276]
[1722213822228,1.09446215,68962.0,68961.0,0.69579121]
[1722213822436,1.10962295,68962.0,68961.0,0.70497276]
[1722213822629,0.74767018,68962.0,68961.0,0.70497276]
[1722213822907,0.52965918,68962.0,68961.0,0.70497276]
[1722213823052,0.72942413,68962.0,68961.0,0.70497276]
[1722213823252,0.99364044,68962.0,68961.0,0.70497276]
[1722213823456,0.76162944,68962.0,68961.0,0.70497276]
[1722213823668,0.7063768,68962.0,68961.0,0.70497276]
[1722213823886,0.76063109,68962.0,68961.0,0.70497276]
[1722213824641,1.01564209,68962.0,68961.0,0.70497276]
[1722213824970,2.31784209,68962.0,68961.0,0.70497276]
[1722213825573,2.31784209,68962.0,68961.0,0.66512155]
[1722213825868,1.33251509,68962.0,68961.0,0.66512155]
[1722213826233,1.57852609,68962.0,68961.0,0.66512155]
[1722213826431,1.59252609,68962.0,68961.0,0.66512155]
[1722213827171,1.90352826,68962.0,68961.0,0.66512155]
[1722213827728,1.90352826,68962.0,68961.0,0.58922155]
[1722213828237,1.95352826,68962.0,68961.0,0.58922155]
[1722213828436,1.90352826,68962.0,68961.0,0.58922155]
[1722213829044,1.83462326,68962.0,68961.0,0.58922155]
[1722213830237,1.83437588,68962.0,68961.0,0.58922155]
[1722213830680,1.83437503,68962.0,68961.0,0.58922155]
[1722213831501,1.94255203,68962.0,68961.0,0.58922155]
[1722213831842,2.1058933,68962.0,68961.0,0.58922155]
[1722213832176,1.89255203,68962.0,68961.0,0.58922155]
[1722213832377,2.10591398,68962.0,68961.0,0.58922155]
[1722213832581,1.89263997,68962.0,68961.0,0.58922155]
[1722213832779,1.94263997,68962.0,68961.0,0.58922155]
[1722213833189,1.94263997,68962.0,68961.0,0.58004]
[1722213833435,1.94257891,68962.0,68961.0,0.58004]
[1722213833628,1.89510094,68962.0,68961.0,0.58004]
[1722213833829,1.88088894,68962.0,68961.0,0.58004]
[1722213834369,1.88088894,68962.0,68961.0,0.72734]
[1722213834370,1.71965994,68962.0,68961.0,0.72734]
[1722213834761,1.93303662,68962.0,68961.0,0.72734]
[1722213835905,1.71965994,68962.0,68961.0,0.72734]
[1722213836638,1.71939997,68962.0,68961.0,0.72734]
[1722213837471,1.71939997,68962.0,68961.0,0.58004]
[1722213839123,1.48738897,68962.0,68961.0,0.58004]
[1722213839330,1.29263597,68962.0,68961.0,0.58004]
[1722213839692,1.2319897,68962.0,68961.0,0.58004]
[1722213840094,1.26357599,68962.0,68961.0,0.58004]
[1722213840297,1.05008683,68962.0,68961.0,0.58004]
[1722213840507,1.09081149,68962.0,68961.0,0.58004]
[1722213840712,0.96082449,68962.0,68961.0,0.65554]
[1722213840921,0.83580049,68962.0,68961.0,0.73075881]
[1722213841185,0.60378949,68962.0,68961.0,0.73075881]
[1722213841392,0.83580049,68962.0,68961.0,0.73075881]
[1722213842012,0.48778449,68962.0,68961.0,0.73075881]
[1722213842219,0.14216054,68962.0,68961.0,0.73075881]
[1722213842435,0.14216054,68962.0,68961.0,0.96509469]
[1722213842650,0.08398354,68962.0,68961.0,0.88375881]
[1722213843102,0.06998354,68962.0,68961.0,0.88375881]
[1722213843509,0.07898354,68962.0,68961.0,0.88375881]
[1722213843920,0.06998354,68962.0,68961.0,0.88375881]
[1722213844160,0.07798354,68962.0,68961.0,0.88375881]
[1722213845106,0.06345563,68962.0,68961.0,1.01450887]
[1722213845304,0.07045563,68962.0,68961.0,1.22080887]
[1722213845536,0.07045563,68962.0,68961.0,1.09005881]
[1722213845705,0.06345563,68962.0,68961.0,1.09005881]
[1722213846112,0.06445563,68962.0,68961.0,1.09005881]
[1722213847349,0.21112382,68962.0,68961.0,1.09005881]
[1722213847621,0.21112478,68962.0,68961.0,1.09005881]
[1722213847812,0.06445563,68962.0,68961.0,1.09005881]
[1722213848025,0.06445563,68962.0,68961.0,1.09098281]
[1722213848227,0.0241608,68962.0,68961.0,1.09098281]
[1722213848484,0.03404541,68962.0,68961.0,1.09098281]
[1722213848689,0.39522064,68962.0,68961.0,0.66708281]
[1722213848897,0.41332816,68962.0,68961.0,0.66708281]
[1722213849105,0.64533916,68962.0,68961.0,0.66708281]
[1722213849690,0.64533916,68962.0,68961.0,0.59158281]
[1722213849691,0.87735016,68962.0,68961.0,0.59158281]
[1722213849885,0.63733916,68962.0,68961.0,0.59158281]
[1722213850147,0.64133916,68962.0,68961.0,0.59158281]
[1722213850378,0.99635016,68962.0,68961.0,0.59158281]
[1722213850591,1.06495016,68962.0,68961.0,0.59158281]
[1722213850935,1.20295016,68962.0,68961.0,0.59158281]
[1722213851161,1.25295016,68962.0,68961.0,0.59158281]
[1722213851305,1.43435801,68962.0,68961.0,0.59158281]
[1722213851505,1.20038332,68962.0,68961.0,0.59158281]
[1722213851753,1.19738332,68962.0,68961.0,0.59158281]
[1722213851952,1.60739821,68962.0,68961.0,0.59158281]
[1722213852108,1.68704401,68962.0,68961.0,0.59158281]
[1722213852737,1.67304401,68962.0,68961.0,0.59158281]
[1722213852944,1.68704401,68962.0,68961.0,0.59158281]
[1722213853181,1.67304401,68962.0,68961.0,0.59158281]
[1722213853519,1.68704401,68962.0,68961.0,0.59158281]
[1722213854119,1.35503301,68962.0,68961.0,0.59158281]
[1722213854353,1.2638388,68962.0,68961.0,0.59158281]
[1722213854540,1.68875541,68962.0,68961.0,0.59158281]
[1722213854952,1.35674441,68962.0,68961.0,0.59158281]
[1722213855311,1.45674441,68962.0,68961.0,0.59158281]
[1722213855516,1.68875541,68962.0,68961.0,0.59158281]
[1722213856347,1.35674441,68962.0,68961.0,0.59158281]
[1722213856573,1.30674441,68962.0,68961.0,0.59158281]
[1722213856916,1.35674441,68962.0,68961.0,0.59158281]
[1722213857525,1.30687509,68962.0,68961.0,0.59158281]
[1722213858494,1.35687509,68962.0,68961.0,0.59158281]
[1722213858992,1.16007509,68962.0,68961.0,0.59158281]
[1722213859846,0.99907509,68962.0,68961.0,0.59158281]
[1722213860069,0.76706409,68962.0,68961.0,0.59158281]
[1722213860474,0.76706409,68962.0,68961.0,0.5688066]
[1722213860671,0.7240278,68962.0,68961.0,0.5688066]
[1722213860880,0.98111835,68962.0,68961.0,0.5688066]
[1722213861323,0.76715287,68962.0,68961.0,0.5688066]
[1722213861723,0.79015287,68962.0,68961.0,0.5688066]
[1722213862734,0.79015287,68962.0,68961.0,0.6521066]
[1722213863166,0.7470278,68962.0,68961.0,0.6521066]
[1722213863510,0.776404,68962.0,68961.0,0.6521066]
[1722213863873,0.71378578,68962.0,68961.0,0.6521066]
[1722213864085,0.74321715,68962.0,68961.0,0.6521066]
[1722213864281,0.74321715,68962.0,68961.0,0.5688066]
[1722213864482,0.77237795,68962.0,68961.0,0.5688066]
[1722213864684,0.78637795,68962.0,68961.0,0.5688066]
[1722213864861,0.77237795,68962.0,68961.0,0.5688066]
[1722213865437,1.01838895,68962.0,68961.0,0.5688066]
[1722213865765,1.09558895,68962.0,68961.0,0.5688066]
[1722213865963,2.31816295,68962.0,68961.0,0.5688066]
[1722213866166,1.67731895,68962.0,68961.0,0.5688066]
[1722213866762,1.89127754,68962.0,68961.0,0.5688066]
[1722213867220,2.77174011,68962.0,68961.0,0.5688066]
[1722213867422,2.77174011,68962.0,68961.0,0.55818779]
[1722213868434,2.82174011,68962.0,68961.0,0.55818779]
[1722213868629,2.77174011,68962.0,68961.0,0.55818779]
[1722213869138,2.55777295,68962.0,68961.0,0.55818779]
[1722213869686,2.83978395,68962.0,68961.0,0.55818779]
[1722213870325,2.80540045,68962.0,68961.0,0.55818779]
[1722213870482,2.83932132,68962.0,68961.0,0.55818779]
[1722213870888,2.83937763,68962.0,68961.0,0.55818779]
[1722213872037,2.93937763,68962.0,68961.0,0.55818779]
[1722213873421,2.89635258,68962.0,68961.0,0.55818779]
[1722213873613,2.93904955,68962.0,68961.0,0.55818779]
[1722213874020,3.05731586,68962.0,68961.0,0.41132361]
[1722213874224,3.28932686,68962.0,68961.0,0.41132361]
[1722213874891,3.52133786,68962.0,68961.0,0.26631361]
[1722213875087,3.52133786,68962.0,68961.0,0.23731161]
[1722213875292,3.52133786,68962.0,68961.0,0.52733161]
[1722213875672,3.50733786,68962.0,68961.0,0.52733161]
[1722213875874,3.40307155,68962.0,68961.0,0.52733161]
[1722213876087,3.40307155,68962.0,68961.0,0.46932761]
[1722213876396,3.36037458,68962.0,68961.0,0.35331961]
[1722213876742,3.40297491,68962.0,68961.0,0.32431761]
[1722213876917,3.61686177,68962.0,68961.0,0.32431761]
[1722213877250,3.61686177,68962.0,68961.0,0.29531561]
[1722213877403,3.40297491,68962.0,68961.0,0.17930761]
[1722213877604,3.61681982,68962.0,68961.0,0.17930761]
[1722213877778,3.40297491,68962.0,68961.0,0.17930761]
[1722213877988,3.61681903,68962.0,68961.0,0.17930761]
[1722213878184,3.40297491,68962.0,68961.0,0.17930761]
[1722213878881,3.38897491,68962.0,68961.0,0.03429761]
[1722213879660,3.60217116,68962.0,68961.0,0.03429761]
[1722213879859,3.38840491,68962.0,68961.0,0.03429761]
[1722213880259,3.38839539,68962.0,68961.0,0.03429761]
[1722213880473,3.40239539,68962.0,68961.0,0.03429761]
[1722213880674,3.38839539,68962.0,68961.0,0.03429761]
[1722213880889,3.78839539,68962.0,68961.0,0.03429761]
[1722213881095,3.80239539,68962.0,68961.0,0.03429761]
[1722213881314,3.8251754,68962.0,68961.0,0.03522161]
[1722213881528,3.8260154,68962.0,68961.0,0.03522161]
[1722213881715,3.80323539,68962.0,68961.0,0.01244161]
[1722213882917,3.80345351,68962.0,68961.0,0.01244161]
[1722213884023,3.70345351,68962.0,68961.0,0.01244161]
[1722213884228,3.80345351,68962.0,68961.0,0.01244161]
[1722213885632,1.669776,68956.0,68955.0,0.008976]
[1722213885934,8.66440959,68956.0,68955.0,0.008976]
[1722213886118,2.60779685,68956.0,68955.0,0.299016]
[1722213886387,2.89234812,68956.0,68955.0,0.14525395]
[1722213886588,0.15,68942.0,68941.0,0.008976]
[1722213886785,9.13177185,68942.0,68941.0,0.299076]
[1722213886994,9.62312985,68942.0,68941.0,0.299076]
[1722213887198,9.62312985,68942.0,68941.0,0.43677595]
[1722213887199,9.54350765,68942.0,68941.0,0.43677595]
[1722213887401,9.54350765,68942.0,68941.0,0.35141131]
[1722213887402,10.55850765,68942.0,68941.0,0.35141131]
[1722213887607,10.97079504,68942.0,68941.0,0.35141131]
[1722213888163,10.98479504,68942.0,68941.0,0.26438131]
[1722213888361,13.52905622,68942.0,68941.0,0.1597396]
[1722213888563,13.52905622,68942.0,68937.0,0.008976]
[1722213888564,2.224252,68940.0,68937.0,0.008976]
[1722213888771,2.46553119,68940.0,68937.0,0.008976]
[1722213888965,9.56631319,68940.0,68939.0,0.299086]
[1722213889209,9.48994819,68940.0,68939.0,0.212053]
[1722213889410,9.37353119,68940.0,68939.0,0.154031]
[1722213889632,9.73582065,68940.0,68939.0,0.154031]
[1722213889826,9.20006965,68940.0,68939.0,0.154031]
[1722213889981,8.81406965,68940.0,68939.0,0.154031]
[1722213890197,8.81406965,68940.0,68939.0,0.008973]
[1722213890618,9.23685905,68940.0,68939.0,0.008973]
[1722213890856,9.25085905,68940.0,68939.0,0.008973]
[1722213891413,1.826693,68928.0,68927.0,0.000924]
[1722213891622,10.27393808,68928.0,68927.0,0.000924]
[1722213891858,9.73149408,68928.0,68927.0,0.291084]
[1722213892055,9.75428504,68928.0,68927.0,0.291084]
[1722213892249,9.56558562,68928.0,68927.0,0.291084]
[1722213892452,9.60801676,68928.0,68927.0,0.291084]
[1722213893172,9.84014276,68928.0,68927.0,0.262068]
[1722213893598,9.4668011,68928.0,68927.0,0.262068]
[1722213893791,9.4808011,68928.0,68927.0,0.262068]
[1722213894017,9.3859611,68928.0,68927.0,0.262068]
[1722213894220,14.03056394,68928.0,68927.0,0.116988]
[1722213894426,2.067596,68917.0,68916.0,0.008976]
[1722213894588,6.0920468,68917.0,68916.0,0.299186]
[1722213894794,8.0795008,68917.0,68916.0,0.299186]
[1722213895163,6.2663418,68917.0,68916.0,0.299186]
[1722213895363,6.23296563,68917.0,68916.0,0.299186]
[1722213895568,6.26708309,68917.0,68916.0,0.299186]
[1722213897205,6.21708309,68917.0,68916.0,0.299186]
[1722213897531,6.39693665,68917.0,68916.0,0.299186]
[1722213897801,6.28987839,68917.0,68916.0,0.299186]
[1722213897922,6.23987839,68917.0,68916.0,0.299186]
[1722213898129,5.96258882,68917.0,68916.0,0.299186]
[1722213898535,6.26941639,68917.0,68916.0,0.299186]
[1722213898801,6.41941143,68917.0,68916.0,0.299186]
[1722213898930,5.40274205,68917.0,68916.0,0.299186]
[1722213899135,4.59741076,68917.0,68916.0,0.299186]
[1722213899335,4.00850133,68917.0,68916.0,0.299186]
[1722213899736,3.62115967,68917.0,68916.0,0.299186]
[1722213899938,3.73515967,68917.0,68916.0,0.299186]
[1722213900138,3.72115967,68917.0,68916.0,0.299186]
[1722213900344,3.73515967,68917.0,68916.0,0.299186]
[1722213900641,3.64915967,68917.0,68916.0,0.299186]
[1722213900895,3.63515967,68917.0,68916.0,0.299186]
[1722213901061,3.65815967,68917.0,68916.0,0.299186]
[1722213901266,3.67172955,68917.0,68916.0,0.299186]
[1722213902401,4.00389255,68917.0,68916.0,0.299186]
[1722213902639,4.01905335,68917.0,68916.0,0.299186]
[1722213903507,4.027848,68917.0,68916.0,0.299186]
[1722213903704,4.013848,68917.0,68916.0,0.299186]
[1722213903857,3.9483828,68917.0,68916.0,0.299186]
[1722213904062,4.00534383,68917.0,68916.0,0.299186]
[1722213904308,3.90452134,68917.0,68916.0,0.299186]
[1722213905126,4.35043147,68917.0,68916.0,0.299186]
[1722213905304,4.45844383,68917.0,68916.0,0.299186]
[1722213905552,4.45844383,68917.0,68916.0,0.154081]
[1722213905756,4.69060683,68917.0,68916.0,0.154081]
[1722213906181,2.40728083,68917.0,68916.0,0.037997]
[1722213906379,2.39328083,68917.0,68916.0,0.008976]
[1722213906555,2.16363799,68917.0,68916.0,0.008976]
[1722213906782,2.17763799,68917.0,68916.0,0.008976]
[1722213906895,2.12223116,68917.0,68916.0,0.008976]
[1722213907112,2.16343606,68917.0,68916.0,0.008976]
[1722213907350,4.98863806,68917.0,68916.0,0.008976]
[1722213907578,5.05947726,68917.0,68916.0,0.008976]
[1722213908031,5.07347726,68917.0,68916.0,0.008976]
[1722213908468,5.05947726,68917.0,68916.0,0.008976]
[1722213908680,5.01671816,68917.0,68916.0,0.008976]
[1722213908988,5.07338345,68917.0,68916.0,0.008976]
[1722213909392,3.41095645,68917.0,68916.0,0.008976]
[1722213910264,3.43375127,68917.0,68916.0,0.008976]
[1722213910622,3.37708598,68917.0,68916.0,0.008976]
[1722213910832,1.69427924,68917.0,68916.0,0.008976]
[1722213911028,1.69427924,68917.0,68916.0,0.087576]
[1722213911029,1.47147471,68917.0,68916.0,0.087576]
[1722213911261,1.09525353,68917.0,68916.0,0.153376]
[1722213911665,0.78426424,68917.0,68916.0,0.153376]
[1722213911839,0.77026424,68917.0,68916.0,0.153376]
[1722213912199,0.79826424,68917.0,68916.0,0.153376]
[1722213912490,0.84909053,68917.0,68916.0,0.153376]
[1722213912696,0.1848965,68917.0,68916.0,0.443586]
[1722213912847,0.14165592,68917.0,68916.0,0.443586]
[1722213913050,0.02557492,68917.0,68916.0,0.5085746]
[1722213913255,0.02557212,68917.0,68916.0,0.6615746]
[1722213913456,0.02557212,68917.0,68916.0,0.596586]
[1722213914072,0.01157212,68917.0,68916.0,0.596586]
[1722213914331,0.02305196,68917.0,68916.0,0.596586]
[1722213914477,0.00905196,68917.0,68916.0,0.596586]
[1722213914680,0.06736976,68927.0,68916.0,0.596586]
[1722213914681,0.05228838,68923.0,68916.0,0.30011]
[1722213914903,0.04323642,68924.0,68922.0,0.06212979]
[1722213915115,0.00905104,68923.0,68922.0,0.06212979]
[1722213915283,0.00905104,68923.0,68922.0,0.77288979]
[1722213915484,0.00084,68927.0,68922.0,0.62848979]
[1722213915485,0.03,68925.0,68922.0,0.62848979]
[1722213915683,0.03905033,68924.0,68923.0,0.1444]
[1722213915892,0.03905033,68924.0,68923.0,0.71076]
[1722213916875,0.38725833,68924.0,68923.0,0.71076]
[1722213917077,0.4871572,68924.0,68923.0,0.71076]
[1722213917452,0.4871572,68924.0,68923.0,0.70676]
[1722213917453,0.65444157,68924.0,68923.0,0.70676]
[1722213917667,0.66804817,68924.0,68923.0,0.70676]
[1722213917817,0.91418717,68924.0,68923.0,0.70676]
[1722213918022,0.92018717,68924.0,68923.0,0.70776]
[1722213918267,3.15365817,68924.0,68923.0,0.58036]
[1722213918463,3.60879717,68924.0,68923.0,0.58036]
[1722213919074,3.59479717,68924.0,68923.0,0.58036]
[1722213919287,3.5552568,68924.0,68923.0,0.58136]
[1722213919603,3.5552568,68924.0,68923.0,0.58236]
[1722213919604,3.6063869,68924.0,68923.0,0.58236]
[1722213920010,2.83022788,68924.0,68923.0,0.58236]
[1722213920506,2.67558488,68924.0,68923.0,0.58236]
[1722213920696,1.65359388,68924.0,68923.0,0.58236]
[1722213920995,1.64754471,68924.0,68923.0,0.58136]
[1722213921229,1.68454471,68924.0,68923.0,0.58136]
[1722213921855,1.67054471,68924.0,68923.0,0.58136]
[1722213922002,1.63454471,68924.0,68923.0,0.58136]
[1722213922414,1.59248263,68924.0,68923.0,0.58136]
[1722213922581,1.68474466,68924.0,68923.0,0.58136]
[1722213922947,1.62574466,68924.0,68923.0,0.58036]
[1722213923160,1.63974466,68924.0,68923.0,0.58136]
[1722213923620,1.48100966,68924.0,68923.0,0.58136]
[1722213924313,1.03957466,68924.0,68923.0,0.58136]
[1722213924740,0.58642166,68924.0,68923.0,0.72376]
[1722213924887,0.81856066,68924.0,68923.0,0.72376]
[1722213925074,0.35428266,68924.0,68923.0,0.72376]
[1722213925425,0.13821366,68924.0,68923.0,0.87676]
[1722213925570,0.13778862,68924.0,68923.0,0.87676]
[1722213925771,0.10500253,68924.0,68923.0,0.87676]
[1722213926184,0.475296,68937.0,68923.0,0.87676]
[1722213926185,0.04335855,68931.0,68923.0,0.76436]
[1722213926398,0.10839638,68943.0,68923.0,0.76436]
[1722213926399,0.06503782,68943.0,68930.0,0.46442979]
[1722213926599,0.116037,68943.0,68942.0,0.25812979]
[1722213926815,0.116037,68943.0,68942.0,0.91352979]
[1722213927183,0.44314982,68943.0,68942.0,0.91352979]
[1722213927334,0.21107482,68943.0,68942.0,0.92042979]
[1722213927695,0.21107482,68943.0,68942.0,0.6864]
[1722213927696,0.44312301,68943.0,68942.0,0.6864]
[1722213928088,0.45312301,68943.0,68942.0,0.6874]
[1722213928294,0.46412301,68943.0,68942.0,0.6874]
[1722213928514,0.167037,68943.0,68942.0,0.75079634]
[1722213928658,0.46413122,68943.0,68942.0,0.6874]
[1722213928853,0.156037,68943.0,68942.0,0.6874]
[1722213929081,1.940371,68943.0,68942.0,0.6112]
[1722213929425,1.99291,68943.0,68942.0,0.6102]
[1722213929558,1.840154,68943.0,68942.0,0.6102]
[1722213929737,1.173208,68943.0,68942.0,0.6102]
[1722213929964,1.153718,68943.0,68942.0,0.6102]
[1722213930384,1.130721,68943.0,68942.0,0.6112]
[1722213930596,0.489112,68943.0,68942.0,0.6112]
[1722213930957,1.706923,68943.0,68942.0,0.6112]
[1722213931098,2.03635629,68943.0,68942.0,0.6112]
[1722213931299,1.80428129,68943.0,68942.0,0.6112]
[1722213931521,1.305147,68943.0,68942.0,0.6122]
[1722213931764,0.861847,68943.0,68942.0,0.6122]
[1722213931991,1.1892758,68943.0,68942.0,0.6112]
[1722213932192,0.848847,68943.0,68942.0,0.6112]
[1722213932427,0.849847,68943.0,68942.0,0.6112]
[1722213932625,0.98096976,68943.0,68942.0,0.6112]
[1722213932828,0.98096976,68943.0,68942.0,0.6122]
[1722213932829,0.87263086,68943.0,68942.0,0.6122]
[1722213932987,0.9581859,68943.0,68942.0,0.6122]
[1722213933189,0.849847,68943.0,68942.0,0.6112]
[1722213933629,1.082922,68943.0,68942.0,0.6122]
[1722213934172,1.09197195,68943.0,68942.0,0.6122]
[1722213934372,1.47803195,68943.0,68942.0,0.6122]
[1722213934583,1.37108995,68943.0,68942.0,0.6122]
[1722213935029,1.36204,68943.0,68942.0,0.6122]
[1722213935232,1.37108968,68943.0,68942.0,0.6122]
[1722213936315,1.40179413,68943.0,68942.0,0.6122]
[1722213936523,1.53175908,68943.0,68942.0,0.6122]
[1722213936937,1.53173873,68943.0,68942.0,0.6122]
[1722213937335,1.40180117,68943.0,68942.0,0.6122]
[1722213937816,1.78387617,68943.0,68942.0,0.6122]
[1722213938051,1.63780117,68943.0,68942.0,0.6122]
[1722213938261,1.50709059,68943.0,68942.0,0.6122]
[1722213938414,1.86947117,68943.0,68942.0,0.6122]
[1722213938576,2.04595128,68943.0,68942.0,0.6122]
[1722213938780,1.89978148,68943.0,68942.0,0.6122]